bitfinex/quotes_SOLUSD_20250819
["timestamp","ask_amount","ask_price","bid_price","bid_amount"]
[1755592384432,6.0459731,179.89,179.87,0.71]
[1755592385938,6.0459731,179.91,179.87,0.71]
[1755592386139,26.0,179.92,179.87,0.71]
[1755592386315,6.0459731,179.91,179.87,0.71]
[1755592386827,26.0,179.92,179.87,0.71]
[1755592387036,6.0459731,179.91,179.87,0.71]
[1755592387224,6.0459731,179.91,179.88,0.71]
[1755592387537,6.0459731,179.91,179.89,0.71]
[1755592387840,6.0459731,179.9,179.86,0.71]
[1755592388041,6.0459731,179.9,179.87,0.67]
[1755592388241,26.0,179.92,179.87,0.67]
[1755592388449,26.0,179.92,179.87,6.7159731]
[1755592388617,26.0,179.92,179.88,0.67]
[1755592388817,32.0459731,179.92,179.88,0.67]
[1755592389043,6.0459731,179.91,179.88,0.67]
[1755592389249,6.0459731,179.91,179.89,0.67]
[1755592389547,4.14929241,179.9,179.89,0.67]
[1755592389856,4.14929241,179.9,179.86,11.60583705]
[1755592390046,32.0459731,179.92,179.87,6.0459731]
[1755592390221,4.14881085,179.91,179.88,0.67]
[1755592390527,26.0,179.92,179.89,6.0459731]
[1755592390714,26.0,179.92,179.9,0.67]
[1755592390916,26.0,179.92,179.91,0.67]
[1755592391122,30.14912423,179.92,179.91,0.67]
[1755592392720,4.14715091,179.92,179.91,0.67]
[1755592393345,0.03,179.94,179.91,0.67]
[1755592393532,4.14668995,179.93,179.91,0.67]
[1755592393730,6.0759731,179.94,179.91,0.67]
[1755592393935,4.14668856,179.93,179.91,0.67]
[1755592394224,6.0759731,179.94,179.91,0.67]
[1755592394428,4.14651737,179.93,179.89,6.7159731]
[1755592394754,6.0459731,179.93,179.89,0.67]
[1755592395660,6.0459731,179.93,179.9,0.67]
[1755592395822,6.0759731,179.94,179.91,0.67]
[1755592396021,4.14727953,179.93,179.91,0.67]
[1755592396231,6.0759731,179.94,179.91,0.67]
[1755592396531,4.14705913,179.93,179.91,0.67]
[1755592396722,6.7559731,179.94,179.89,6.7159731]
[1755592396919,4.14698673,179.93,179.9,0.67]
[1755592397134,6.7559731,179.94,179.9,0.67]
[1755592397339,4.14698969,179.93,179.9,0.67]
[1755592397550,6.7559731,179.94,179.9,0.67]
[1755592397854,4.14745761,179.93,179.9,0.67]
[1755592398020,6.7559731,179.94,179.9,0.67]
[1755592398220,4.14762377,179.93,179.91,0.67]
[1755592398425,4.14762377,179.92,179.91,0.67]
[1755592398830,4.14762377,179.92,179.89,6.0459731]
[1755592399036,6.0759731,179.94,179.9,0.67]
[1755592399346,4.14745732,179.93,179.9,0.67]
[1755592399535,4.14745732,179.92,179.91,0.67]
[1755592402362,0.03,179.94,179.91,0.67]
[1755592402555,4.14829845,179.93,179.91,0.67]
[1755592402752,26.0,179.93,179.92,0.67]
[1755592402953,4.14841927,179.93,179.92,6.7159731]
[1755592403253,0.03,179.94,179.9,6.7159731]
[1755592403440,0.03,179.94,179.9,0.67]
[1755592403753,0.03,179.94,179.91,0.67]
[1755592404258,0.03,179.94,179.92,6.22799372]
[1755592404466,0.03,179.94,179.92,12.27396682]
[1755592404753,0.03,179.94,179.93,0.67]
[1755592404974,4.17889644,179.94,179.93,6.7159731]
[1755592405270,0.03,179.94,179.93,21.82218867]
[1755592407664,0.03,179.94,179.93,27.37990555]
[1755592412670,0.03,179.94,179.93,21.33393245]
[1755592412851,0.03,179.94,179.93,27.37990555]
[1755592413659,0.03,179.94,179.93,54.87621557]
[1755592413969,0.03,179.94,179.93,60.43393245]
[1755592414365,0.03,179.94,179.93,66.47990555]
[1755592417555,0.03,179.96,179.94,15.10621557]
[1755592417871,0.03,179.96,179.95,60.25218867]
[1755592418079,0.03,179.96,179.95,66.49928786]
[1755592422685,0.03,179.96,179.95,72.19824223]
[1755592422883,1e-08,179.96,179.95,72.19824223]
[1755592423080,0.03,179.98,179.96,15.10621557]
[1755592423382,0.03,179.98,179.97,60.23218867]
[1755592423688,0.03,179.98,179.97,60.92218867]
[1755592424065,0.03,179.98,179.97,66.4786703]
[1755592424361,0.03,180.01,179.98,15.10621557]
[1755592424573,0.03,180.01,179.99,60.23218867]
[1755592425150,0.03,180.01,179.99,60.92218867]
[1755592425474,0.03,180.01,179.99,66.47805288]
[1755592427060,0.03,180.01,179.99,26.70805288]
[1755592427286,0.03,180.01,179.99,65.78805288]
[1755592427779,0.03,180.01,179.99,66.47805288]
[1755592428889,0.03,180.01,179.99,65.78805288]
[1755592429083,0.03,180.01,179.99,66.47805288]
[1755592430588,0.03,180.06,180.0,41.10621557]
[1755592430886,0.03,180.06,180.05,21.15218867]
[1755592431079,0.03,180.06,180.05,60.23218867]
[1755592431280,0.03,180.06,180.05,60.92218867]
[1755592431682,0.03,180.06,180.05,66.47620144]
[1755592431990,0.03,180.06,180.05,67.03160271]
[1755592433078,0.03,180.06,180.05,66.47620144]
[1755592435280,0.03,180.06,180.05,59.74022834]
[1755592435590,0.72,180.06,180.05,60.21218867]
[1755592435971,0.72,180.06,180.05,54.16621557]
[1755592436361,0.72,180.06,180.05,39.06]
[1755592438780,6.7659731,180.06,180.05,39.06]
[1755592439291,0.72,180.06,180.05,39.06]
[1755592439469,6.7659731,180.06,180.05,39.06]
[1755592440270,0.03,180.06,180.05,54.16621557]
[1755592441487,0.72,180.06,180.05,39.06]
[1755592442415,6.7659731,180.06,180.05,39.06]
[1755592445282,6.7659731,180.06,179.99,15.16621557]
[1755592445494,6.0459731,180.01,180.0,54.16621557]
[1755592445697,6.7359731,180.01,180.0,54.16621557]
[1755592446484,6.7359731,180.01,180.0,39.06]
[1755592447198,0.69,180.04,180.0,39.75]
[1755592447391,6.0459731,180.03,180.01,0.69]
[1755592447600,6.0459731,180.03,180.02,39.06]
[1755592447802,6.7359731,180.03,180.02,39.06]
[1755592448203,0.69,180.03,180.02,39.06]
[1755592448393,6.7359731,180.03,180.02,39.06]
[1755592448792,10.86824506,180.03,180.02,39.06]
[1755592448985,10.86824506,180.03,179.99,0.06]
[1755592449300,6.735973,180.05,179.99,39.12]
[1755592449301,6.0459731,180.0,179.99,39.12]
[1755592449507,6.7359731,180.0,179.99,39.12]
[1755592454993,6.0459731,180.0,179.99,39.12]
[1755592456090,26.0,180.02,179.99,39.83]
[1755592456291,6.0459731,180.0,179.99,39.83]
[1755592456491,26.0,180.02,179.99,39.83]
[1755592456708,6.0459731,180.0,179.99,39.12]
[1755592457201,6.0459731,180.03,179.99,39.83]
[1755592457405,6.0459731,180.03,179.99,39.12]
[1755592457619,6.0459731,180.03,179.99,39.83]
[1755592457803,6.0459731,180.01,179.99,39.12]
[1755592457999,6.0459731,180.0,179.99,39.12]
[1755592458396,6.0459731,180.0,179.99,39.83]
[1755592458599,6.0459731,180.01,179.99,39.83]
[1755592459621,6.0459731,180.0,179.99,39.83]
[1755592459921,149.395181,180.04,179.99,39.83]
[1755592460118,6.0459731,180.01,179.99,39.83]
[1755592460601,6.0459731,180.01,179.99,39.12]
[1755592461198,6.0459731,180.01,179.99,39.83]
[1755592461418,149.395181,180.04,179.99,45.38580378]
[1755592461626,6.0459731,180.03,180.0,0.71]
[1755592461918,6.0459731,180.03,180.01,39.08]
[1755592462116,138.0459731,180.04,180.01,39.08]
[1755592462316,138.0459731,180.04,180.02,0.71]
[1755592462500,6.0459731,180.04,180.03,39.06]
[1755592464121,6.0459731,180.05,180.03,39.77]
[1755592464522,6.0459731,180.04,180.03,39.06]
[1755592466914,6.0459731,180.05,180.03,39.77]
[1755592467212,6.0759731,180.06,180.03,39.06]
[1755592467408,6.0759731,180.06,180.03,39.77]
[1755592467609,0.03,180.06,180.03,39.77]
[1755592467818,6.0759731,180.06,180.04,0.71]
[1755592468023,6.0759731,180.06,180.05,39.06]
[1755592468903,6.0759731,180.06,179.99,15.87621557]
[1755592468904,6.7659731,180.06,179.99,15.87621557]
[1755592469215,6.0459731,180.01,180.0,39.06]
[1755592470198,6.0459731,180.02,180.0,39.06]
[1755592470822,6.0459731,180.01,180.0,39.06]
[1755592472698,6.0459731,180.02,180.0,39.06]
[1755592472902,0.69,180.04,180.0,39.77]
[1755592473103,6.0459731,180.02,180.0,39.77]
[1755592473924,6.0459731,180.02,180.01,0.71]
[1755592474122,6.0459731,180.03,180.01,0.71]
[1755592474329,6.0459731,180.02,180.0,39.06]
[1755592474703,6.0459731,180.02,180.0,39.77]
[1755592476515,6.0459731,180.01,180.0,39.06]
[1755592476919,6.0459731,180.02,180.0,39.77]
[1755592478132,6.0459731,180.02,180.01,0.72]
[1755592478512,6.0459731,180.04,180.01,0.72]
[1755592479227,6.0459731,180.02,180.0,39.78]
[1755592479427,6.0459731,180.01,180.0,39.06]
[1755592479940,6.0459731,180.01,180.0,39.78]
[1755592480126,6.0459731,180.01,180.0,39.06]
[1755592481128,6.7159731,180.01,180.0,39.06]
[1755592481318,10.87281303,180.01,179.99,0.06]
[1755592481523,10.87403871,180.0,179.99,0.06]
[1755592483136,10.20403871,180.0,179.99,0.06]
[1755592485031,10.2056838,180.0,179.99,0.06]
[1755592485832,10.8756838,180.0,179.99,0.06]
[1755592487339,14.61935867,180.0,179.99,0.06]
[1755592492461,26.22088732,180.0,179.99,0.06]
[1755592492648,22.89330977,180.0,179.99,0.06]
[1755592493356,16.84733667,180.0,179.99,0.06]
[1755592493644,16.17733667,180.0,179.99,0.06]
[1755592494219,12.01762597,180.0,179.99,0.06]
[1755592494450,16.1760035,180.0,179.99,0.06]
[1755592494830,10.1300304,180.0,179.99,0.06]
[1755592495048,16.1760035,180.0,179.99,0.06]
[1755592495248,13.9480255,180.0,179.99,0.78]
[1755592496653,10.20435063,180.0,179.99,0.78]
[1755592497427,10.20435063,180.0,179.99,0.06]
[1755592497950,10.87435063,180.0,179.99,0.06]
[1755592498156,16.92032373,180.0,179.99,0.06]
[1755592498451,16.17296439,180.0,179.99,0.06]
[1755592499026,16.84296439,180.0,179.99,0.06]
[1755592499565,16.83968047,180.0,179.99,0.06]
[1755592500338,13.94170347,180.0,179.99,0.06]
[1755592500536,10.20106671,180.0,179.99,0.06]
[1755592500939,10.20106671,180.0,179.99,0.78]
[1755592501455,132.0,180.01,179.99,0.78]
[1755592501646,138.0459731,180.01,179.99,0.78]
[1755592501842,138.0459731,180.01,180.0,0.72]
[1755592502050,4.15410487,180.01,180.0,0.72]
[1755592502239,6.0759731,180.03,180.0,0.72]
[1755592502641,4.15380356,180.02,180.0,0.72]
[1755592502839,6.0759731,180.03,180.0,0.72]
[1755592503462,6.0459731,180.02,180.01,0.72]
[1755592505547,6.0759731,180.03,180.01,0.72]
[1755592505742,6.0759731,180.03,180.02,0.72]
[1755592506138,6.0759731,180.03,179.99,39.84]
[1755592506341,6.0459731,180.01,179.99,39.12]
[1755592506559,6.0459731,180.01,180.0,0.72]
[1755592507835,6.0459731,180.01,179.99,39.12]
[1755592508038,6.0459731,180.0,179.99,39.12]
[1755592508258,6.0459731,180.0,179.99,0.06]
[1755592508465,10.89018142,180.0,179.99,0.06]
[1755592511139,10.20018142,180.0,179.99,0.06]
[1755592511561,10.89018142,180.0,179.99,0.06]
[1755592511762,10.8911915,180.0,179.99,0.06]
[1755592512340,10.89171622,180.0,179.99,0.06]
[1755592512740,14.63148427,180.0,179.99,0.06]
[1755592513750,20.67745737,180.0,179.99,0.06]
[1755592515064,20.67810819,180.0,179.99,0.06]
[1755592516950,22.90608619,180.0,179.99,0.06]
[1755592518074,28.4599481,180.0,179.97,0.06]
[1755592518369,32.0459731,179.98,179.97,0.06]
[1755592518673,39.94044145,179.98,179.97,0.06]
[1755592518860,46.18661435,179.98,179.97,0.06]
[1755592519778,48.41496435,179.98,179.97,0.06]
[1755592521170,48.41475484,179.98,179.97,0.06]
[1755592521871,48.41472311,179.98,179.97,0.06]
[1755592523773,42.85855021,179.98,179.97,0.06]
[1755592524271,42.16855021,179.98,179.97,0.06]
[1755592525954,42.16855021,179.98,179.97,0.76]
[1755592526306,42.16855021,179.98,179.97,0.06]
[1755592526451,42.85855021,179.98,179.97,0.06]
[1755592527803,48.41472311,179.98,179.97,0.06]
[1755592527962,48.41472311,179.98,179.96,0.06]
[1755592528276,14.63020021,179.97,179.93,0.06]
[1755592528472,6.0459731,179.94,179.93,0.06]
[1755592528672,13.94020021,179.94,179.93,0.06]
[1755592528866,6.0459731,179.89,179.88,0.7]
[1755592532667,134.228723,179.93,179.88,0.7]
[1755592532860,6.0459731,179.89,179.88,0.7]
[1755592533666,6.0459731,179.89,179.86,0.76]
[1755592533866,6.0459731,179.87,179.86,0.76]
[1755592534060,6.0459731,179.87,179.86,0.06]
[1755592534061,6.7359731,179.87,179.86,0.06]
[1755592534491,8.9654411,179.87,179.86,0.06]
[1755592534870,13.10954459,179.87,179.86,0.06]
[1755592535288,8.9654411,179.87,179.86,0.06]
[1755592536591,14.5250119,179.87,179.86,0.06]
[1755592538167,13.8350119,179.87,179.86,0.06]
[1755592538569,14.5450119,179.87,179.86,0.06]
[1755592539474,8.9854411,179.87,179.86,0.06]
[1755592539789,8.2754411,179.87,179.86,0.06]
[1755592541596,13.8350119,179.87,179.86,0.06]
[1755592543368,14.5450119,179.87,179.86,0.06]
[1755592544397,13.8350119,179.87,179.86,0.06]
[1755592546191,8.2754411,179.87,179.86,0.06]
[1755592546874,13.8350119,179.87,179.86,0.06]
[1755592547591,14.5450119,179.87,179.86,0.06]
[1755592548578,8.2754411,179.87,179.86,0.06]
[1755592548787,8.2754411,179.87,179.86,0.74]
[1755592549291,6.0459731,179.87,179.86,0.74]
[1755592550886,2.90147291,179.88,179.86,0.74]
[1755592551093,6.0459731,179.89,179.86,0.74]
[1755592551607,6.0459731,179.9,179.86,0.74]
[1755592551980,6.0459731,179.89,179.86,0.74]
[1755592553188,6.0459731,179.9,179.86,0.74]
[1755592553918,6.0459731,179.9,179.86,39.82]
[1755592554110,6.0459731,179.9,179.86,39.14]
[1755592554417,6.0459731,179.9,179.87,0.68]
[1755592555011,6.0459731,179.89,179.86,39.14]
[1755592555306,6.0459731,179.87,179.86,39.82]
[1755592555708,6.0459731,179.88,179.86,39.82]
[1755592555913,6.0459731,179.88,179.86,39.14]
[1755592556087,6.0459731,179.88,179.87,0.68]
[1755592558120,6.0459731,179.88,179.86,39.14]
[1755592558290,6.0459731,179.87,179.86,39.14]
[1755592558487,6.0459731,179.87,179.86,39.82]
[1755592561108,6.0459731,179.88,179.86,39.82]
[1755592561296,2.90059241,179.92,179.87,0.68]
[1755592561496,6.0759731,179.93,179.88,21.15218867]
[1755592561719,6.0459731,179.92,179.89,0.68]
[1755592562019,6.0459731,179.92,179.9,0.68]
[1755592562236,6.0459731,179.91,179.9,0.68]
[1755592562600,6.0459731,179.91,179.88,0.68]
[1755592562805,6.0459731,179.9,179.88,0.68]
[1755592562996,6.0459731,179.9,179.89,0.68]
[1755592563195,6.0459731,179.91,179.89,0.68]
[1755592563695,6.0459731,179.91,179.9,0.68]
[1755592565788,6.0459731,179.91,179.87,15.10621557]
[1755592566090,6.0459731,179.9,179.88,0.68]
[1755592567312,6.0459731,179.89,179.86,39.82]
[1755592567484,6.0459731,179.88,179.87,39.74]
[1755592569216,6.0459731,179.88,179.86,0.06]
[1755592569520,0.72,179.88,179.87,39.06]
[1755592570505,6.7659731,179.88,179.87,39.06]
[1755592571541,6.0459731,179.89,179.87,39.78]
[1755592571906,6.0459731,179.88,179.87,39.78]
[1755592572805,6.0459731,179.88,179.87,39.06]
[1755592573329,6.0459731,179.88,179.87,39.78]
[1755592574939,0.72,179.91,179.87,39.78]
[1755592575113,6.0459731,179.88,179.87,39.78]
[1755592575540,6.0459731,179.88,179.87,39.06]
[1755592582345,6.0459731,179.88,179.87,39.78]
[1755592583338,6.0459731,179.89,179.87,39.78]
[1755592583527,6.0459731,179.89,179.88,0.72]
[1755592584731,26.03,179.93,179.88,0.72]
[1755592584732,6.0459731,179.91,179.88,0.72]
[1755592585046,6.0459731,179.9,179.89,0.72]
[1755592585939,6.0459731,179.9,179.87,39.06]
[1755592586148,6.0459731,179.89,179.88,0.72]
[1755592586448,0.03,179.93,179.88,0.72]
[1755592586610,0.03,179.93,179.91,15.10621557]
[1755592586810,0.03,179.93,179.92,39.78]
[1755592587030,0.03,179.93,179.92,54.88621557]
[1755592587446,0.03,179.93,179.92,39.78]
[1755592588641,0.03,179.93,179.92,54.88621557]
[1755592589341,6.0759731,179.93,179.92,39.06]
[1755592589526,6.0759731,179.93,179.9,0.72]
[1755592589711,6.0459731,179.92,179.91,39.78]
[1755592590152,6.0759731,179.93,179.91,39.78]
[1755592590365,0.03,179.93,179.92,0.72]
[1755592592456,6.0759731,179.93,179.92,0.72]
[1755592593328,10.94473601,179.93,179.91,39.06]
[1755592593519,10.91466587,179.92,179.87,0.06]
[1755592593764,6.0459731,179.88,179.87,0.06]
[1755592593930,6.0459731,179.88,179.87,39.12]
[1755592594541,26.72,179.91,179.87,39.84]
[1755592594767,6.0459731,179.88,179.87,39.84]
[1755592595654,6.0459731,179.9,179.87,39.84]
[1755592595858,6.0459731,179.9,179.88,0.72]
[1755592596053,6.0459731,179.91,179.88,0.72]
[1755592596773,6.0459731,179.91,179.89,0.72]
[1755592596960,26.03,179.93,179.9,39.06]
[1755592597134,4.14935133,179.92,179.9,39.06]
[1755592597335,26.03,179.93,179.9,39.06]
[1755592597566,4.8693763,179.92,179.9,39.06]
[1755592597875,4.1493763,179.91,179.9,39.06]
[1755592598229,10.1953494,179.91,179.9,39.06]
[1755592598537,10.8653494,179.91,179.9,39.06]
[1755592598726,10.8653494,179.91,179.87,0.06]
[1755592598727,26.0,179.89,179.87,0.06]
[1755592599032,6.0459731,179.88,179.87,0.06]
[1755592599259,6.7159731,179.88,179.87,0.06]
[1755592599559,14.60103755,179.88,179.87,0.06]
[1755592600057,13.93103755,179.88,179.87,0.06]
[1755592600224,10.19603689,179.88,179.87,0.06]
[1755592600661,6.0459731,179.88,179.87,0.74]
[1755592600866,0.03,179.93,179.87,0.74]
[1755592601161,26.0,179.91,179.87,0.74]
[1755592601456,6.0459731,179.9,179.87,6.29937034]
[1755592601630,6.0459731,179.9,179.88,0.68]
[1755592601832,6.0459731,179.9,179.89,39.74]
[1755592603263,6.0459731,179.9,179.89,39.06]
[1755592603656,6.0459731,179.9,179.89,39.74]
[1755592604346,6.0459731,179.91,179.89,39.74]
[1755592604553,6.0459731,179.91,179.9,0.68]
[1755592604870,0.03,179.93,179.9,0.68]
[1755592605058,6.0459731,179.91,179.9,0.68]
[1755592605659,0.03,179.93,179.9,0.68]
[1755592605860,4.18063716,179.93,179.91,0.68]
[1755592606172,0.03,179.93,179.92,54.16621557]
[1755592606356,0.03,179.93,179.92,54.84621557]
[1755592607056,0.03,179.93,179.92,60.89218867]
[1755592607842,0.03,179.93,179.92,66.45021445]
[1755592608944,0.03,179.93,179.92,60.40424135]
[1755592609147,0.03,179.93,179.92,66.45021445]
[1755592611364,0.03,179.93,179.9,15.10621557]
[1755592611668,0.03,179.93,179.92,15.10621557]
[1755592612248,0.03,179.93,179.92,15.78621557]
[1755592614374,0.03,179.93,179.92,27.39021445]
[1755592616887,0.03,179.93,179.92,15.78621557]
[1755592617087,0.03,179.93,179.92,21.34424135]
[1755592617450,0.03,179.93,179.92,27.39021445]
[1755592622906,0.03,179.93,179.92,21.34424135]
[1755592623100,0.03,179.93,179.92,27.39021445]
[1755592625418,1e-08,179.93,179.92,27.39021445]
[1755592627719,1e-08,179.93,179.92,26.71021445]
[1755592628526,1e-08,179.93,179.92,27.39021445]
[1755592633392,1e-08,179.93,179.92,26.71021445]
[1755592634412,0.65000001,179.93,179.92,15.10621557]
[1755592634624,0.65000001,179.93,179.92,54.14621557]
[1755592635405,6.69597311,179.93,179.92,39.04]
[1755592636356,6.69597311,179.93,179.88,0.06]
[1755592636640,6.0459731,179.89,179.88,0.06]
[1755592636934,6.0459731,179.89,179.88,39.1]
[1755592637138,6.6959731,179.89,179.88,39.1]
[1755592643320,0.65,179.91,179.88,39.1]
[1755592643517,6.0459731,179.9,179.88,39.1]
[1755592643840,6.0459731,179.89,179.88,39.1]
[1755592644839,6.0459731,179.9,179.88,39.78]
[1755592645437,6.6959731,179.9,179.88,39.1]
[1755592645650,6.0459731,179.9,179.88,39.1]
[1755592646049,6.0459731,179.89,179.88,54.20621557]
[1755592647248,6.0459731,179.89,179.88,39.1]
[1755592649319,32.0459731,179.92,179.88,45.33915921]
[1755592649548,32.0459731,179.92,179.89,0.68]
[1755592649733,32.0459731,179.92,179.9,39.04]
[1755592651250,6.6959731,179.91,179.9,39.04]
[1755592651932,6.6959731,179.91,179.88,0.06]
[1755592652248,0.65,179.9,179.89,39.04]
[1755592653145,26.65,179.92,179.89,39.04]
[1755592653335,6.0459731,179.9,179.89,39.04]
[1755592655036,6.6959731,179.9,179.89,39.04]
[1755592655224,6.0459731,179.9,179.89,39.04]
[1755592655752,6.0459731,179.91,179.89,39.72]
[1755592655936,6.0459731,179.91,179.89,39.04]
[1755592656825,6.04597311,179.93,179.9,15.78621557]
[1755592657326,6.0459731,179.92,179.9,15.78621557]
[1755592658364,6.0459731,179.91,179.89,39.04]
[1755592658573,6.0459731,179.9,179.89,39.04]
[1755592658753,6.0459731,179.9,179.89,39.1]
[1755592658754,6.7559731,179.9,179.89,39.1]
[1755592658950,6.0459731,179.9,179.89,39.1]
[1755592660657,6.0459731,179.9,179.89,0.06]
[1755592660959,6.0459731,179.9,179.89,39.1]
[1755592661868,4.9259731,179.9,179.89,39.1]
[1755592662872,6.04597311,179.93,179.89,45.32883683]
[1755592663048,1e-08,179.93,179.9,15.77621557]
[1755592663368,6.0459731,179.91,179.89,0.06]
[1755592663573,6.0459731,179.9,179.89,0.06]
[1755592663755,6.0459731,179.9,179.89,39.1]
[1755592664754,6.0459731,179.92,179.9,15.10621557]
[1755592664964,6.04597311,179.93,179.9,15.10621557]
[1755592665159,6.04597311,179.93,179.91,0.67]
[1755592665360,6.04597311,179.93,179.92,39.04]
[1755592665780,1e-08,179.93,179.92,39.71]
[1755592666271,6.04597311,179.93,179.92,39.04]
[1755592668465,6.75597311,179.93,179.89,0.06]
[1755592668655,6.75597311,179.93,179.9,39.06]
[1755592668656,26.0,179.91,179.9,39.06]
[1755592668853,32.0459731,179.91,179.9,39.06]
[1755592669182,32.7559731,179.91,179.9,39.06]
[1755592670056,36.88863679,179.91,179.89,0.06]
[1755592670276,32.7559731,179.9,179.89,0.06]
[1755592671078,36.88915864,179.9,179.89,0.06]
[1755592671967,42.44780233,179.9,179.89,0.06]
[1755592672280,46.16779504,179.9,179.89,0.06]
[1755592672480,46.1676305,179.9,179.89,0.06]
[1755592674869,14.60898681,179.9,179.89,0.06]
[1755592675076,10.8889941,179.9,179.89,0.06]
[1755592675477,6.7559731,179.9,179.89,0.06]
[1755592675669,10.89057294,179.9,179.89,0.06]
[1755592675984,6.0459731,179.9,179.89,0.73]
[1755592676558,6.0459731,179.9,179.89,0.06]
[1755592678491,10.18950454,179.9,179.89,0.06]
[1755592678684,10.89950454,179.9,179.89,0.06]
[1755592679677,10.18950454,179.9,179.89,0.06]
[1755592680061,6.0459731,179.9,179.89,0.06]
[1755592680265,10.19235753,179.9,179.89,0.06]
[1755592682891,10.19235753,179.9,179.89,0.73]
[1755592683410,36.19235753,179.9,179.89,0.73]
[1755592683693,30.14960283,179.9,179.89,0.73]
[1755592683889,36.19557593,179.9,179.89,0.73]
[1755592685682,36.19557593,179.9,179.89,0.06]
[1755592686383,36.90557593,179.9,179.89,0.06]
[1755592689095,40.59984928,179.9,179.89,0.06]
[1755592690502,46.15849297,179.9,179.89,0.06]
[1755592691175,40.59984928,179.9,179.89,0.06]
[1755592692588,46.15849297,179.9,179.89,0.06]
[1755592692788,46.15475337,179.9,179.89,0.06]
[1755592692991,52.20072647,179.9,179.87,0.06]
[1755592693201,52.20072647,179.9,179.86,0.06]
[1755592693202,12.0919462,179.88,179.86,0.06]
[1755592693505,13.92451382,179.87,179.86,0.06]
[1755592693711,13.92425262,179.87,179.86,0.06]
[1755592693891,14.59425262,179.87,179.86,0.06]
[1755592697516,19.06698556,179.87,179.86,0.06]
[1755592700210,24.62655636,179.87,179.86,0.06]
[1755592701200,19.06698556,179.87,179.86,0.06]
[1755592701591,18.39698556,179.87,179.86,0.06]
[1755592701792,14.25297939,179.87,179.86,0.06]
[1755592702097,18.3877002,179.87,179.86,0.06]
[1755592702497,18.38744353,179.87,179.86,0.06]
[1755592702721,19.05744353,179.87,179.86,0.06]
[1755592703905,24.61701433,179.87,179.86,0.06]
[1755592704104,24.61701433,179.87,179.85,0.06]
[1755592704306,4.80446414,179.86,179.85,0.06]
[1755592706340,36.85043724,179.86,179.85,0.06]
[1755592706645,36.18043724,179.86,179.85,0.06]
[1755592707013,36.85043724,179.86,179.85,0.06]
[1755592708315,36.18043724,179.86,179.85,0.06]
[1755592710560,36.18043724,179.86,179.85,0.78]
[1755592711236,36.18009295,179.86,179.85,0.78]
[1755592711748,36.18096828,179.86,179.85,0.78]
[1755592712233,30.13499518,179.86,179.85,0.78]
[1755592712435,39.90331202,179.86,179.85,0.78]
[1755592712623,36.18096828,179.86,179.85,0.78]
[1755592715843,36.85096828,179.86,179.85,0.06]
[1755592716044,36.85096828,179.86,179.84,0.06]
[1755592716045,46.13519542,179.86,179.84,0.06]
[1755592716251,10.85096828,179.85,179.84,0.06]
[1755592716429,10.18096828,179.85,179.84,0.06]
[1755592718230,10.85096828,179.85,179.84,0.06]
[1755592718428,4.13499518,179.85,179.84,0.06]
[1755592718632,10.18096828,179.85,179.84,0.72]
[1755592720469,10.18510986,179.85,179.84,0.72]
[1755592721169,10.18535933,179.85,179.84,0.72]
[1755592721336,10.18556011,179.85,179.84,0.72]
[1755592722067,4.13958701,179.85,179.84,0.72]
[1755592722272,6.0459731,179.85,179.84,0.72]